[Event "*** SCC Grand Prix: Titled Tuesday Blitz"]
[Site "Chess.com"]
[Date "2020.06.23"]
[Round "1"]
[White "KobyKalavannan"]
[Black "smshk35"]
[Result "0-1"]
[WhiteElo "2656"]
[BlackElo "2357"]
[TimeControl "180+1"]
[EndTime "10:08:30 PDT"]
[Termination "smshk35 won by checkmate"]

1. d4 {[%clk 0:03:00.5]} 1... Nf6 {[%clk 0:02:56.8]} 2. c4 {[%clk 0:03:00.3]}
2... e6 {[%clk 0:02:54.1]} 3. Nf3 {[%clk 0:03:00.5]} 3... b6 {[%clk 0:02:53.7]}
4. g3 {[%clk 0:03:00.7]} 4... Bb7 {[%clk 0:02:54]} 5. Bg2 {[%clk 0:03:01]} 5...
Be7 {[%clk 0:02:54.1]} 6. O-O {[%clk 0:03:01.5]} 6... O-O {[%clk 0:02:53.7]} 7.
Nc3 {[%clk 0:03:02.2]} 7... Ne4 {[%clk 0:02:53.8]} 8. Qc2 {[%clk 0:03:02.1]}
8... d5 {[%clk 0:02:50.6]} 9. Rd1 {[%clk 0:02:55.5]} 9... f5 {[%clk 0:02:42.7]}
10. Ne5 {[%clk 0:02:51.3]} 10... c6 {[%clk 0:02:41.1]} 11. h4 {[%clk 0:02:28.9]}
11... Nd7 {[%clk 0:02:40.1]} 12. Bf4 {[%clk 0:02:28.8]} 12... Nxe5 {[%clk
0:02:36.1]} 13. Bxe5 {[%clk 0:02:28.7]} 13... Rc8 {[%clk 0:02:24]} 14. cxd5
{[%clk 0:02:16.5]} 14... cxd5 {[%clk 0:02:22.7]} 15. Rac1 {[%clk 0:02:17.1]}
15... Ba6 {[%clk 0:02:10.2]} 16. e3 {[%clk 0:02:00.2]} 16... Nxc3 {[%clk
0:02:06.2]} 17. bxc3 {[%clk 0:02:01.1]} 17... Bc4 {[%clk 0:02:06]} 18. Qb2
{[%clk 0:01:57.8]} 18... b5 {[%clk 0:01:57.1]} 19. Bf1 {[%clk 0:01:54.6]} 19...
Bd6 {[%clk 0:01:52.1]} 20. Bxc4 {[%clk 0:01:50]} 20... bxc4 {[%clk 0:01:47.1]}
21. Bxd6 {[%clk 0:01:33.5]} 21... Qxd6 {[%clk 0:01:48]} 22. Qb7 {[%clk
0:01:26.6]} 22... Rb8 {[%clk 0:01:39.9]} 23. Qxa7 {[%clk 0:01:25.6]} 23... Ra8
{[%clk 0:01:35.6]} 24. Qb7 {[%clk 0:01:17.5]} 24... Rfb8 {[%clk 0:01:33.3]} 25.
Rb1 {[%clk 0:01:15]} 25... Rxb7 {[%clk 0:01:33.2]} 26. Rxb7 {[%clk 0:01:15.9]}
26... Rxa2 {[%clk 0:01:18.7]} 27. Rdb1 {[%clk 0:01:15.6]} 27... h6 {[%clk
0:01:17.9]} 28. h5 {[%clk 0:01:03.3]} 28... e5 {[%clk 0:01:15.6]} 29. R1b6
{[%clk 0:00:57.8]} 29... Qa3 {[%clk 0:00:53.5]} 30. Rg6 {[%clk 0:00:57.6]} 30...
Qc1+ {[%clk 0:00:34.2]} 31. Kg2 {[%clk 0:00:57.4]} 31... Rxf2+ {[%clk
0:00:29.9]} 32. Kxf2 {[%clk 0:00:56.1]} 32... Qd2+ {[%clk 0:00:30.1]} 33. Kf1
{[%clk 0:00:38.9]} 33... Qd1+ {[%clk 0:00:28.9]} 34. Kf2 {[%clk 0:00:37.9]}
34... Qc2+ {[%clk 0:00:19.9]} 35. Kg1 {[%clk 0:00:35.1]} 35... Qc1+ {[%clk
0:00:19.1]} 36. Kh2 {[%clk 0:00:32]} 36... Qxe3 {[%clk 0:00:13.1]} 37. Rgxg7+
{[%clk 0:00:31.8]} 37... Kf8 {[%clk 0:00:13.4]} 38. Rgf7+ {[%clk 0:00:30.2]}
38... Kg8 {[%clk 0:00:13.5]} 39. Rxf5 {[%clk 0:00:13.5]} 39... exd4 {[%clk
0:00:13.1]} 40. Rxd5 {[%clk 0:00:10.6]} 40... Qe2+ {[%clk 0:00:11.3]} 41. Kh3
{[%clk 0:00:10.6]} 41... Qf1+ {[%clk 0:00:07.6]} 42. Kg4 {[%clk 0:00:09.6]}
42... Qe2+ {[%clk 0:00:08]} 43. Kf5 {[%clk 0:00:07.1]} 43... Qf3+ {[%clk
0:00:08.2]} 44. Ke6 {[%clk 0:00:06.3]} 44... Qe4+ {[%clk 0:00:07.8]} 45. Kd6
{[%clk 0:00:06.4]} 45... dxc3 {[%clk 0:00:07.5]} 46. Kc5 {[%clk 0:00:06]} 46...
Qe3+ {[%clk 0:00:07.4]} 47. Kc6 {[%clk 0:00:06.1]} 47... Qe6+ {[%clk 0:00:07.5]}
48. Rd6 {[%clk 0:00:05.9]} 48... Qc8+ {[%clk 0:00:07.7]} 49. Rc7 {[%clk
0:00:05.9]} 49... Qe8+ {[%clk 0:00:08]} 50. Kb7 {[%clk 0:00:05.2]} 50... c2
{[%clk 0:00:06]} 51. Rdd7 {[%clk 0:00:03.1]} 51... c1=Q {[%clk 0:00:05.4]} 52.
Rg7+ {[%clk 0:00:03.4]} 52... Kf8 {[%clk 0:00:05.9]} 53. Rh7 {[%clk 0:00:02.8]}
53... Qe4+ {[%clk 0:00:05]} 54. Kc8 {[%clk 0:00:02.9]} 54... Qe8+ {[%clk
0:00:04.9]} 55. Kb7 {[%clk 0:00:02.6]} 55... Qb1+ {[%clk 0:00:05.8]} 56. Ka7
{[%clk 0:00:02]} 56... Qa1+ {[%clk 0:00:05.8]} 57. Kb7 {[%clk 0:00:02.2]} 57...
Qea8+ {[%clk 0:00:06.3]} 58. Kb6 {[%clk 0:00:02.2]} 58... Q1a6+ {[%clk 0:00:07]}
59. Kc5 {[%clk 0:00:02.5]} 59... Qa5+ {[%clk 0:00:07.6]} 60. Kd6 {[%clk
0:00:02.6]} 60... Qb4+ {[%clk 0:00:07.4]} 61. Ke5 {[%clk 0:00:02.9]} 61... Qe8+
{[%clk 0:00:07.2]} 62. Kf4 {[%clk 0:00:02.5]} 62... Qd2+ {[%clk 0:00:07.2]} 63.
Kg4 {[%clk 0:00:02.8]} 63... Qe4+ {[%clk 0:00:07.3]} 64. Kh3 {[%clk 0:00:02.6]}
64... Qdg2# {[%clk 0:00:07.6]} 0-1

[Event "*** SCC Grand Prix: Titled Tuesday Blitz"]
[Site "Chess.com"]
[Date "2020.06.23"]
[Round "1"]
[White "jaskol95"]
[Black "Chess_Boxer123"]
[Result "1-0"]
[WhiteElo "2403"]
[BlackElo "2725"]
[TimeControl "180+1"]
[EndTime "10:08:31 PDT"]
[Termination "jaskol95 won by checkmate"]

1. d4 {[%clk 0:02:58.3]} 1... d5 {[%clk 0:02:59.7]} 2. Bf4 {[%clk 0:02:57.8]}
2... c5 {[%clk 0:02:57.5]} 3. e3 {[%clk 0:02:57.9]} 3... Nc6 {[%clk 0:02:51.2]}
4. c3 {[%clk 0:02:57.9]} 4... Bf5 {[%clk 0:02:49.4]} 5. Nd2 {[%clk 0:02:55.6]}
5... e6 {[%clk 0:02:49.1]} 6. Ngf3 {[%clk 0:02:56.1]} 6... c4 {[%clk 0:02:43.6]}
7. h3 {[%clk 0:02:52.4]} 7... h6 {[%clk 0:02:43.5]} 8. Be2 {[%clk 0:02:42.9]}
8... b5 {[%clk 0:02:43.5]} 9. O-O {[%clk 0:02:42.5]} 9... Bd6 {[%clk 0:02:41.8]}
10. Ne5 {[%clk 0:02:41.1]} 10... Nge7 {[%clk 0:02:41]} 11. Ndf3 {[%clk
0:02:40.1]} 11... O-O {[%clk 0:02:40]} 12. b3 {[%clk 0:02:35.1]} 12... Nxe5
{[%clk 0:02:34.5]} 13. Bxe5 {[%clk 0:02:32.6]} 13... Ba3 {[%clk 0:02:24.2]} 14.
Qd2 {[%clk 0:02:15.7]} 14... Nc6 {[%clk 0:02:21.8]} 15. Bd1 {[%clk 0:02:01.2]}
15... b4 {[%clk 0:02:11.7]} 16. bxc4 {[%clk 0:01:36.6]} 16... dxc4 {[%clk
0:02:11.2]} 17. Bc2 {[%clk 0:00:50.3]} 17... Nxe5 {[%clk 0:01:59.6]} 18. Nxe5
{[%clk 0:00:49.2]} 18... Bb2 {[%clk 0:01:55.7]} 19. Bxf5 {[%clk 0:00:44.7]}
19... Bxc3 {[%clk 0:01:51.3]} 20. Qc2 {[%clk 0:00:43.2]} 20... exf5 {[%clk
0:01:35]} 21. Rab1 {[%clk 0:00:42.8]} 21... Qc8 {[%clk 0:01:32.9]} 22. Qe2
{[%clk 0:00:41.5]} 22... Qa6 {[%clk 0:01:30.5]} 23. Qxc4 {[%clk 0:00:40.2]}
23... Qxc4 {[%clk 0:01:30.5]} 24. Nxc4 {[%clk 0:00:41.1]} 24... a5 {[%clk
0:01:29.2]} 25. Rfd1 {[%clk 0:00:38]} 25... Ra6 {[%clk 0:01:27]} 26. Ne5 {[%clk
0:00:34.9]} 26... Rd8 {[%clk 0:01:20]} 27. Kf1 {[%clk 0:00:33.3]} 27... a4
{[%clk 0:01:19.9]} 28. Ke2 {[%clk 0:00:32.9]} 28... b3 {[%clk 0:01:20.4]} 29.
axb3 {[%clk 0:00:30.2]} 29... a3 {[%clk 0:01:20.2]} 30. Rbc1 {[%clk 0:00:27.9]}
30... Bb2 {[%clk 0:01:15.3]} 31. Rc2 {[%clk 0:00:28.2]} 31... Rb8 {[%clk
0:01:12]} 32. Nd7 {[%clk 0:00:22.9]} 32... Rxb3 {[%clk 0:00:54.9]} 33. Nc5
{[%clk 0:00:22.4]} 33... Rc6 {[%clk 0:00:55.2]} 34. Rcd2 {[%clk 0:00:15.4]}
34... Rb5 {[%clk 0:00:51.9]} 35. Nd3 {[%clk 0:00:15.4]} 35... Ra6 {[%clk
0:00:51]} 36. Nxb2 {[%clk 0:00:15.1]} 36... axb2 {[%clk 0:00:47.1]} 37. Rb1
{[%clk 0:00:15.1]} 37... Rab6 {[%clk 0:00:40.4]} 38. Rc2 {[%clk 0:00:14.8]}
38... Kf8 {[%clk 0:00:38.1]} 39. Rc7 {[%clk 0:00:13.7]} 39... g5 {[%clk
0:00:36]} 40. Kd2 {[%clk 0:00:14.1]} 40... Kg7 {[%clk 0:00:34]} 41. f3 {[%clk
0:00:14.4]} 41... Kg6 {[%clk 0:00:32.6]} 42. Rc5 {[%clk 0:00:14.4]} 42... Kh5
{[%clk 0:00:25.7]} 43. Rxb5 {[%clk 0:00:14.3]} 43... Rxb5 {[%clk 0:00:26.6]} 44.
Kc2 {[%clk 0:00:13.6]} 44... Kh4 {[%clk 0:00:26.5]} 45. Rxb2 {[%clk 0:00:14]}
45... Ra5 {[%clk 0:00:17]} 46. Kd3 {[%clk 0:00:12.8]} 46... Kg3 {[%clk
0:00:16.8]} 47. e4 {[%clk 0:00:11.9]} 47... f4 {[%clk 0:00:15.5]} 48. d5 {[%clk
0:00:12]} 48... Ra3+ {[%clk 0:00:14.8]} 49. Kd4 {[%clk 0:00:12.3]} 49... Ra1
{[%clk 0:00:14.6]} 50. Ke5 {[%clk 0:00:12.5]} 50... Rd1 {[%clk 0:00:11.5]} 51.
Kf6 {[%clk 0:00:12.6]} 51... Rf1 {[%clk 0:00:08.7]} 52. Kxf7 {[%clk 0:00:12.2]}
52... Rf2 {[%clk 0:00:08.2]} 53. Rxf2 {[%clk 0:00:11.7]} 53... Kxf2 {[%clk
0:00:09.1]} 54. d6 {[%clk 0:00:12.6]} 54... Kxg2 {[%clk 0:00:10]} 55. d7 {[%clk
0:00:13.3]} 55... Kxf3 {[%clk 0:00:10.5]} 56. e5 {[%clk 0:00:12.9]} 56... Ke4
{[%clk 0:00:11.4]} 57. e6 {[%clk 0:00:12.7]} 57... f3 {[%clk 0:00:11.6]} 58. e7
{[%clk 0:00:12.9]} 58... Kf4 {[%clk 0:00:12.5]} 59. e8=Q {[%clk 0:00:13.4]}
59... f2 {[%clk 0:00:13.4]} 60. Qe7 {[%clk 0:00:13.4]} 60... Kf3 {[%clk
0:00:12]} 61. Qf6+ {[%clk 0:00:13.6]} 61... Kg2 {[%clk 0:00:11.8]} 62. d8=Q
{[%clk 0:00:14.2]} 62... f1=Q {[%clk 0:00:11.8]} 63. Qxf1+ {[%clk 0:00:14.2]}
63... Kxf1 {[%clk 0:00:12.7]} 64. Qf6+ {[%clk 0:00:14.8]} 64... Kg2 {[%clk
0:00:13.6]} 65. Qxh6 {[%clk 0:00:15.4]} 65... g4 {[%clk 0:00:13.4]} 66. hxg4
{[%clk 0:00:14.9]} 66... Kg3 {[%clk 0:00:13.7]} 67. g5 {[%clk 0:00:15.5]} 67...
Kg4 {[%clk 0:00:14.6]} 68. g6 {[%clk 0:00:16.1]} 68... Kf5 {[%clk 0:00:15.5]}
69. g7 {[%clk 0:00:16.1]} 69... Ke5 {[%clk 0:00:16.4]} 70. Qf6+ {[%clk
0:00:16.2]} 70... Ke4 {[%clk 0:00:15.9]} 71. g8=Q {[%clk 0:00:15.9]} 71... Kd5
{[%clk 0:00:16.8]} 72. Qgg5+ {[%clk 0:00:16.5]} 72... Ke4 {[%clk 0:00:16.5]} 73.
Qff4+ {[%clk 0:00:17.4]} 73... Kd3 {[%clk 0:00:16.7]} 74. Qgg3+ {[%clk
0:00:18.3]} 74... Ke2 {[%clk 0:00:17]} 75. Qff2+ {[%clk 0:00:18.7]} 75... Kd1
{[%clk 0:00:17.7]} 76. Qgg1# {[%clk 0:00:19.4]} 1-0

[Event "*** SCC Grand Prix: Titled Tuesday Blitz"]
[Site "Chess.com"]
[Date "2020.06.23"]
[Round "1"]
[White "Shota_Azaladze"]
[Black "Dmitry_Konenkin"]
[Result "1-0"]
[WhiteElo "2725"]
[BlackElo "2380"]
[TimeControl "180+1"]
[EndTime "10:08:33 PDT"]
[Termination "Shota_Azaladze won by resignation"]

1. Nf3 {[%clk 0:03:00.9]} 1... d6 {[%clk 0:02:58.1]} 2. g3 {[%clk 0:02:59.9]}
2... Bg4 {[%clk 0:02:57]} 3. Bg2 {[%clk 0:02:59.9]} 3... Nc6 {[%clk 0:02:57.5]}
4. O-O {[%clk 0:02:59.7]} 4... Qd7 {[%clk 0:02:57.6]} 5. d4 {[%clk 0:02:59.4]}
5... O-O-O {[%clk 0:02:56.1]} 6. c4 {[%clk 0:02:58.6]} 6... h5 {[%clk
0:02:54.9]} 7. d5 {[%clk 0:02:57.9]} 7... Ne5 {[%clk 0:02:54.4]} 8. Nxe5 {[%clk
0:02:57.1]} 8... dxe5 {[%clk 0:02:55.3]} 9. h4 {[%clk 0:02:52.1]} 9... Bh3
{[%clk 0:02:52.7]} 10. Nc3 {[%clk 0:02:51.5]} 10... f6 {[%clk 0:02:48.6]} 11. e4
{[%clk 0:02:50.8]} 11... g5 {[%clk 0:02:44.9]} 12. f3 {[%clk 0:02:25.3]} 12...
gxh4 {[%clk 0:02:31.3]} 13. gxh4 {[%clk 0:02:26.2]} 13... Nh6 {[%clk 0:02:29]}
14. Kh2 {[%clk 0:02:21.4]} 14... Bxg2 {[%clk 0:02:27.2]} 15. Kxg2 {[%clk
0:02:22.3]} 15... Rg8+ {[%clk 0:02:27.3]} 16. Kh2 {[%clk 0:02:22.4]} 16... e6
{[%clk 0:01:56.9]} 17. Be3 {[%clk 0:02:17.6]} 17... f5 {[%clk 0:01:44]} 18. Qd2
{[%clk 0:02:02.2]} 18... f4 {[%clk 0:01:38]} 19. Bf2 {[%clk 0:02:01.3]} 19...
Qe7 {[%clk 0:01:17.4]} 20. Rg1 {[%clk 0:01:57.3]} 20... Ng4+ {[%clk 0:01:12.6]}
21. fxg4 {[%clk 0:01:24.7]} 21... hxg4 {[%clk 0:01:13.5]} 22. Kg2 {[%clk
0:01:23.6]} 22... g3 {[%clk 0:01:11.1]} 23. Bxa7 {[%clk 0:01:07.9]} 23... Bh6
{[%clk 0:00:57.2]} 24. Qe2 {[%clk 0:01:06.1]} 24... Rdf8 {[%clk 0:00:43.1]} 25.
Qf3 {[%clk 0:01:01.2]} 25... Qb4 {[%clk 0:00:43]} 26. Rab1 {[%clk 0:00:53.3]}
26... b6 {[%clk 0:00:31.6]} 27. Rgc1 {[%clk 0:00:49.7]} 27... Kb7 {[%clk
0:00:27.7]} 28. Nb5 {[%clk 0:00:48.4]} 28... Qd2+ {[%clk 0:00:27.3]} 29. Kf1
{[%clk 0:00:36]} 29... g2+ {[%clk 0:00:26.5]} 30. Kg1 {[%clk 0:00:36.1]} 30...
Rg3 {[%clk 0:00:26.4]} 31. Qf2 {[%clk 0:00:36.1]} 31... Qxf2+ {[%clk 0:00:18.5]}
32. Kxf2 {[%clk 0:00:37]} 32... Rfg8 {[%clk 0:00:17.8]} 33. Rg1 {[%clk
0:00:36.5]} 33... f3 {[%clk 0:00:18.1]} 34. dxe6 {[%clk 0:00:32.8]} 34... Bf4
{[%clk 0:00:17.6]} 35. e7 {[%clk 0:00:29.3]} 35... Rh3 {[%clk 0:00:16.4]} 36.
Rbd1 {[%clk 0:00:28.9]} 36... Re8 {[%clk 0:00:15.8]} 37. Rd7 {[%clk 0:00:27.3]}
37... Bg3+ {[%clk 0:00:12.3]} 38. Kxf3 {[%clk 0:00:25.5]} 38... Bxh4+ {[%clk
0:00:12.5]} 39. Kxg2 {[%clk 0:00:25]} 39... Rg3+ {[%clk 0:00:12.5]} 40. Kh2
{[%clk 0:00:25.2]} 40... Rxg1 {[%clk 0:00:12.2]} 41. Kxg1 {[%clk 0:00:26.1]}
41... Rxe7 {[%clk 0:00:11.8]} 42. Rxe7 {[%clk 0:00:23.2]} 42... Bxe7 {[%clk
0:00:12.7]} 43. Bxb6 {[%clk 0:00:16]} 43... Kxb6 {[%clk 0:00:12.5]} 44. Kf1
{[%clk 0:00:16.4]} 44... Kc5 {[%clk 0:00:12.8]} 45. b3 {[%clk 0:00:16.7]} 45...
c6 {[%clk 0:00:12.5]} 46. Nc3 {[%clk 0:00:16.2]} 46... Kb4 {[%clk 0:00:12.8]}
47. Nb1 {[%clk 0:00:16.1]} 47... Kc5 {[%clk 0:00:10.3]} 48. Ke2 {[%clk 0:00:17]}
48... Kd4 {[%clk 0:00:11]} 49. Nd2 {[%clk 0:00:16.8]} 49... Kc3 {[%clk
0:00:10.2]} 50. Nf3 {[%clk 0:00:16.1]} 50... Bd6 {[%clk 0:00:09.8]} 51. Ne1
{[%clk 0:00:16.3]} 51... Kb2 {[%clk 0:00:09.9]} 52. Kd3 {[%clk 0:00:15.7]} 52...
Kxa2 {[%clk 0:00:09.6]} 53. Kc2 {[%clk 0:00:15.8]} 53... Ka3 {[%clk 0:00:09.1]}
54. Nd3 {[%clk 0:00:16.4]} 54... Bc7 {[%clk 0:00:06.2]} 55. c5 {[%clk 0:00:16]}
55... Bb8 {[%clk 0:00:05]} 56. Kc3 {[%clk 0:00:16.2]} 56... Bc7 {[%clk
0:00:05.1]} 57. Kc4 {[%clk 0:00:16.5]} 57... Bb8 {[%clk 0:00:04.1]} 58. b4
{[%clk 0:00:16.8]} 58... Ka4 {[%clk 0:00:03.8]} 59. Nb2+ {[%clk 0:00:17]} 59...
Ka3 {[%clk 0:00:04.3]} 60. Nd1 {[%clk 0:00:17.9]} 60... Ka4 {[%clk 0:00:04.2]}
61. Nc3+ {[%clk 0:00:18]} 61... Ka3 {[%clk 0:00:04.7]} 62. b5 {[%clk 0:00:18.6]}
62... cxb5+ {[%clk 0:00:04.7]} 63. Nxb5+ {[%clk 0:00:19.5]} 63... Ka4 {[%clk
0:00:04.5]} 64. c6 {[%clk 0:00:20.4]} 64... Ka5 {[%clk 0:00:04.4]} 65. c7 {[%clk
0:00:20.6]} 65... Bxc7 {[%clk 0:00:05]} 66. Nxc7 {[%clk 0:00:21.4]} 66... Kb6
{[%clk 0:00:05.6]} 67. Ne6 {[%clk 0:00:22]} 67... Kc6 {[%clk 0:00:06.3]} 68. Ng5
{[%clk 0:00:22.7]} 68... Kd6 {[%clk 0:00:07.2]} 69. Nf3 {[%clk 0:00:23.4]} 69...
Ke7 {[%clk 0:00:07.9]} 70. Kc5 {[%clk 0:00:23.8]} 70... Ke6 {[%clk 0:00:08.8]}
71. Kc6 {[%clk 0:00:24]} 71... Kf6 {[%clk 0:00:09.6]} 72. Kd5 {[%clk 0:00:24.9]}
1-0

[Event "*** SCC Grand Prix: Titled Tuesday Blitz"]
[Site "Chess.com"]
[Date "2020.06.23"]
[Round "1"]
[White "Supernotar"]
[Black "StockholmMissile"]
[Result "0-1"]
[WhiteElo "2789"]
[BlackElo "2423"]
[TimeControl "180+1"]
[EndTime "10:08:35 PDT"]
[Termination "StockholmMissile won by checkmate"]

1. d4 {[%clk 0:02:37.4]} 1... d5 {[%clk 0:02:59.3]} 2. c4 {[%clk 0:02:37.5]}
2... c6 {[%clk 0:02:58.7]} 3. e3 {[%clk 0:02:37.6]} 3... Nf6 {[%clk 0:02:57.6]}
4. Bd3 {[%clk 0:02:35.9]} 4... a6 {[%clk 0:02:51.6]} 5. Nd2 {[%clk 0:02:35.1]}
5... Bg4 {[%clk 0:02:45.8]} 6. Qc2 {[%clk 0:02:33.5]} 6... Nbd7 {[%clk
0:02:41.8]} 7. Ngf3 {[%clk 0:02:33.1]} 7... e6 {[%clk 0:02:41.1]} 8. b3 {[%clk
0:02:32.7]} 8... Be7 {[%clk 0:02:37.9]} 9. Bb2 {[%clk 0:02:32.8]} 9... Bh5
{[%clk 0:02:33.8]} 10. O-O {[%clk 0:02:30.1]} 10... Bg6 {[%clk 0:02:32.8]} 11.
e4 {[%clk 0:02:29.2]} 11... dxe4 {[%clk 0:02:30.1]} 12. Nxe4 {[%clk 0:02:29.4]}
12... O-O {[%clk 0:02:28.9]} 13. Rad1 {[%clk 0:02:28.5]} 13... Qa5 {[%clk
0:02:20.8]} 14. a4 {[%clk 0:02:25]} 14... Rad8 {[%clk 0:02:10.3]} 15. Nxf6+
{[%clk 0:02:22.1]} 15... Bxf6 {[%clk 0:02:01.5]} 16. Bc3 {[%clk 0:02:21.5]}
16... Qh5 {[%clk 0:02:00.1]} 17. Bxg6 {[%clk 0:02:19.1]} 17... hxg6 {[%clk
0:01:55.2]} 18. Rd3 {[%clk 0:02:18.9]} 18... Qf5 {[%clk 0:01:39.7]} 19. Qe2
{[%clk 0:02:16.7]} 19... Rfe8 {[%clk 0:01:38]} 20. Rfd1 {[%clk 0:02:15.6]} 20...
c5 {[%clk 0:01:07.8]} 21. h3 {[%clk 0:02:07.5]} 21... cxd4 {[%clk 0:01:03]} 22.
Nxd4 {[%clk 0:01:55.6]} 22... Qc5 {[%clk 0:01:01.1]} 23. Nf3 {[%clk 0:01:51.8]}
23... Bxc3 {[%clk 0:00:55.6]} 24. Rxc3 {[%clk 0:01:50.8]} 24... Ne5 {[%clk
0:00:47.4]} 25. Nxe5 {[%clk 0:01:26.5]} 25... Rxd1+ {[%clk 0:00:46.8]} 26. Qxd1
{[%clk 0:01:26.5]} 26... Qxe5 {[%clk 0:00:47.7]} 27. Rd3 {[%clk 0:01:24.7]}
27... Qc5 {[%clk 0:00:30.5]} 28. Rd7 {[%clk 0:01:05.9]} 28... Re7 {[%clk
0:00:30.4]} 29. Rd8+ {[%clk 0:01:01.8]} 29... Kh7 {[%clk 0:00:30.2]} 30. Qg4
{[%clk 0:00:57.8]} 30... Qh5 {[%clk 0:00:25]} 31. Qf4 {[%clk 0:00:50]} 31... e5
{[%clk 0:00:22.6]} 32. Qd2 {[%clk 0:00:40.8]} 32... e4 {[%clk 0:00:21.9]} 33.
Qd6 {[%clk 0:00:38.9]} 33... Qg5 {[%clk 0:00:18.6]} 34. Kh2 {[%clk 0:00:30.3]}
34... e3 {[%clk 0:00:11.1]} 35. Qb8 {[%clk 0:00:24.7]} 35... Qe5+ {[%clk
0:00:10.6]} 36. Qxe5 {[%clk 0:00:24.2]} 36... Rxe5 {[%clk 0:00:11.5]} 37. fxe3
{[%clk 0:00:22]} 37... Rxe3 {[%clk 0:00:11.9]} 38. b4 {[%clk 0:00:20.8]} 38...
Rb3 {[%clk 0:00:09.7]} 39. b5 {[%clk 0:00:20.9]} 39... axb5 {[%clk 0:00:08.9]}
40. cxb5 {[%clk 0:00:19.2]} 40... Rb4 {[%clk 0:00:07.7]} 41. Rd7 {[%clk
0:00:18.4]} 41... f6 {[%clk 0:00:07.4]} 42. Rxb7 {[%clk 0:00:16.6]} 42... Rxa4
{[%clk 0:00:07.7]} 43. b6 {[%clk 0:00:17]} 43... Rb4 {[%clk 0:00:07.9]} 44. Kg3
{[%clk 0:00:16.6]} 44... g5 {[%clk 0:00:07.7]} 45. Kf3 {[%clk 0:00:16.8]} 45...
Kg6 {[%clk 0:00:08]} 46. Rb8 {[%clk 0:00:15.2]} 46... Kf5 {[%clk 0:00:08]} 47.
b7 {[%clk 0:00:13.6]} 47... Rb3+ {[%clk 0:00:08]} 48. Kf2 {[%clk 0:00:13.6]}
48... Kf4 {[%clk 0:00:08.5]} 49. Rc8 {[%clk 0:00:08.1]} 49... Rb2+ {[%clk
0:00:06.6]} 50. Kf1 {[%clk 0:00:07.8]} 50... Rxb7 {[%clk 0:00:07]} 51. Rc4+
{[%clk 0:00:07.2]} 51... Ke3 {[%clk 0:00:05.6]} 52. Rc3+ {[%clk 0:00:07]} 52...
Ke4 {[%clk 0:00:05.5]} 53. Ra3 {[%clk 0:00:06.6]} 53... Rb2 {[%clk 0:00:04.2]}
54. Kg1 {[%clk 0:00:06.7]} 54... Kf5 {[%clk 0:00:03.2]} 55. Kh2 {[%clk 0:00:07]}
55... Kg6 {[%clk 0:00:03.8]} 56. Kg3 {[%clk 0:00:07.4]} 56... Kh6 {[%clk
0:00:03.8]} 57. Kh2 {[%clk 0:00:07.9]} 57... g6 {[%clk 0:00:04.2]} 58. Ra6
{[%clk 0:00:07.5]} 58... f5 {[%clk 0:00:04.7]} 59. Ra8 {[%clk 0:00:07.8]} 59...
g4 {[%clk 0:00:04.5]} 60. hxg4 {[%clk 0:00:07.3]} 60... fxg4 {[%clk 0:00:05.4]}
61. Kg3 {[%clk 0:00:08.1]} 61... Kh5 {[%clk 0:00:04.9]} 62. Ra5+ {[%clk
0:00:07.7]} 62... g5 {[%clk 0:00:05.1]} 63. Ra8 {[%clk 0:00:07.9]} 63... Rb3+
{[%clk 0:00:05.3]} 64. Kh2 {[%clk 0:00:07.3]} 64... g3+ {[%clk 0:00:04.5]} 65.
Kh3 {[%clk 0:00:06]} 65... g4# {[%clk 0:00:04.6]} 0-1